[Event "44th Chess Olympiad Women 2022"]
[Site "Chennai"]
[Date "2022.08.03"]
[Round "6.26"]
[White "Mendoza, Shania Mae"]
[Black "Ortiz Verdezoto, Anahi"]
[Result "0-1"]
[WhiteElo "2153"]
[BlackElo "2046"]
[Annotator "TA"]
[PlyCount "120"]
[EventDate "2022.??.??"]
[TimeControl "60"]

{[%evp 12,120,56,37,36,35,31,38,41,41,53,50,64,54,120,82,151,112,105,117,116,
103,118,104,125,121,128,129,125,125,133,133,134,107,188,187,190,82,190,190,182,
96,100,98,199,11,14,14,9,0,11,27,35,10,34,0,0,0,0,-49,-41,-47,-47,-177,-188,
-244,-242,-583,-588,-624,-427,-427,-418,-413,-405,-447,-441,-409,-383,-484,
-450,-460,-476,-672,-675,-746,-753,-810,-743,-743,-602,-691,-743,-693,-735,
-727,-711,-679,-655,-1369,-2094,-12081,-4643,-1652,-1646,-1380,-1406,-29972,
-29973,-4966,-4950]} 1. e4 {[%emt 0:00:28]} e5 {[%emt 0:00:37]} 2. Nf3 {
[%emt 0:01:12]} d6 {[%emt 0:00:31]} 3. d4 {[%emt 0:03:37]} exd4 {[%emt 0:01:31]
} 4. Nxd4 {[%emt 0:02:20]} Nf6 {[%emt 0:00:25]} 5. Nc3 {[%emt 0:05:33]} g6 {
[%emt 0:01:23]} 6. Bg5 {[%emt 0:06:56]} Bg7 {[%emt 0:00:31]} 7. Qd2 {[%emt 0:
00:00]} h6 {[%emt 0:08:20] 7...0-0 is vanishing. C41: Philidor Defence.} 8. Bf4
{[%emt 0:03:20] 8.Bf4 was played by the boomers.} ({Reject} 8. Bb5+ c6 9. Bxf6
Qxf6 $17) 8... Nc6 {[%emt 0:01:12]} 9. Nxc6 {[%emt 0:17:11]} bxc6 {[%emt 0:00:
00] White is slightly better.} 10. Be2 {[%emt 0:02:53]} Be6 {[%emt 0:07:49]}
11. O-O {[%emt 0:02:01]} Rb8 {[%emt 0:00:15] [#]} 12. b3 $146 {[%emt 0:07:17]}
({Predecessor:} 12. Rab1 h5 13. Bg5 Qc8 14. f4 O-O 15. f5 Bd7 16. Bd3 Qe8 17.
h3 Nh7 18. f6 {1-0 (36) Chocenka,D (2224)-Klabis,R (2235) Lithuania 2014})
12... Qd7 {[%emt 0:08:56]} (12... Nd7 $14) 13. Rad1 {[%emt 0:00:57]} d5 {
[%emt 0:07:04]} (13... Ng4 $142) 14. e5 {[%emt 0:02:57]} Ng4 {[%emt 0:01:42]}
15. Bxg4 {[%emt 0:06:38]} Bxg4 {[%emt 0:00:06]} 16. f3 {[%emt 0:00:07]} Be6 {
[%emt 0:01:29]} 17. Na4 {[%emt 0:00:07]} Qe7 {[%emt 0:00:51]} 18. Qc3 {[%emt 0:
00:00]} O-O {[%emt 0:07:23]} 19. Be3 {[%emt 0:04:35]} Rfe8 {[%emt 0:07:53]} 20.
Bxa7 {[%emt 0:01:05]} Ra8 {[%emt 0:00:09]} 21. Bd4 {[%emt 0:00:26]} Bd7 {
[%emt 0:01:34][%cal Rg7e5]} 22. Rde1 {[%emt 0:02:30]} Qg5 {[%emt 0:02:30]} (
22... c5 $16 23. Nxc5 (23. Bxc5 Qe6 $16) 23... Rxa2) 23. f4 $18 {[%emt 0:00:53]
} Qf5 {[%emt 0:06:16]} 24. Qd3 {[%emt 0:07:33]} (24. Ra1 $18 {has better
winning chances.}) 24... Qh5 {[%emt 0:02:07]} (24... Bf8 $16 {was necessary.})
25. h3 {[%emt 0:02:42]} Qh4 {[%emt 0:03:08]} 26. Re2 {[%emt 0:02:15]} (26. Rf2
$18) 26... Bc8 $16 {[%emt 0:00:38]} 27. Nc5 {[%emt 0:07:48] Inhibits Ba6.} Bf5
{[%emt 0:05:44]} (27... Rxa2 $16 28. Qc3 Bf8) 28. Qd1 $2 {[%emt 0:01:28]} (28.
Qc3 $18) 28... Rxa2 $11 {[%emt 0:04:35]} 29. Na4 {[%emt 0:00:25]} Ra8 {[%emt 0:
00:00]} 30. Qb1 {[%emt 0:00:57]} R2xa4 {[%emt 0:00:00]} (30... Bd3 $5 {[%cal
Rd3e2]} 31. Ref2 R2xa4 32. bxa4 Bxf1 33. Rxf1 Rxa4 $15) 31. bxa4 {[%emt 0:00:
00]} Rxa4 {[%emt 0:00:02]} 32. Rd2 {[%emt 0:00:51] [#] Strongly threatening
Qb8+.} Kh7 {[%emt 0:04:54][%cal Yc6c5]} 33. Qe1 {[%emt 0:00:31]} Qe7 {[%emt 0:
00:00]} 34. Qf2 {[%emt 0:00:30]} Rc4 {[%emt 0:00:06] Prevents Bc5.} 35. c3 {
[%emt 0:00:41]} (35. Ra1 $11) 35... c5 $15 {[%emt 0:01:09]} 36. Be3 {[%emt 0:
00:00]} Be4 {[%emt 0:00:26]} 37. Qe1 {[%emt 0:01:12]} (37. Rb2 $15) 37... Rxc3
$19 {[%emt 0:01:38]} 38. Rdf2 {[%emt 0:00:58]} (38. Ra2 $142 Rd3 39. Bf2) 38...
Rb3 {[%emt 0:02:06]} 39. Qc1 $2 {[%emt 0:00:44]} (39. Ra2 {is tougher.}) 39...
d4 {[%emt 0:01:05]} 40. Bd2 {[%emt 0:00:05]} Bd3 {[%emt 0:02:19] Prevents Qc4.}
41. Re1 {[%emt 0:32:32]} c4 {[%emt 0:30:19][%cal Yc5c4,Yc4c3]} 42. Qa1 {
[%emt 0:00:00]} c3 {[%emt 0:00:00]} 43. Bc1 {[%emt 0:00:00]} c5 {[%emt 0:00:00]
} 44. Qa8 {[%emt 0:00:00]} Qb7 {[%emt 0:00:00]} 45. Qe8 {[%emt 0:00:00]} Bb5 {
[%emt 0:00:00] A strong pair of Bishops.} 46. Qd8 {[%emt 0:00:00]} Qd7 {
[%emt 0:00:00]} ({Don't go for} 46... d3 $2 47. Ra2 d2 48. Bxd2 cxd2 49. Rxd2
$19) 47. Qb6 {[%emt 0:00:00]} (47. Qxd7 $142 Bxd7 48. Ra2) 47... Qd5 {[%emt 0:
00:00]} 48. Qc7 {[%emt 0:00:00]} d3 {[%emt 0:00:00]} 49. Be3 {[%emt 0:00:00]}
d2 {[%emt 0:00:00]} 50. Bxd2 {[%emt 0:00:00]} cxd2 {[%emt 0:00:00]} 51. Rd1 {
[%emt 0:00:00]} Rd3 {[%emt 0:00:00]} 52. Qa5 {[%emt 0:00:00] Against Ba4} c4 {
[%emt 0:00:00] [#] ...c3 is the strong threat.} 53. Rdxd2 {[%emt 0:00:00]} Bf8
{[%emt 0:00:00][%cal Yf8c5] And now ...Bc5! would win.} 54. Kh2 {[%emt 0:00:00]
} Bc6 {[%emt 0:01:33]} 55. Qa2 {[%emt 0:02:53]} Bc5 {[%emt 0:00:50] ( -> ...
Rxd2)} 56. Rfe2 {[%emt 0:01:59]} Rxd2 {[%emt 0:02:26]} (56... Be3 $142 57. Rxd3
Bxf4+ 58. Kg1 cxd3) 57. Qxd2 {[%emt 0:01:16]} Qxd2 {[%emt 0:00:41]} 58. Rxd2 {
[%emt 0:00:02]} c3 {[%emt 0:00:29][%cal Yc4c3,Yc3c2]} 59. Ra2 {[%emt 0:01:17]}
Be4 {[%emt 0:00:30]} 60. Ra4 {[%emt 0:01:22]} c2 {[%emt 0:00:00] Quite a
comeback for Black. Weighted Error Value: White=0.72/Black=0.23 (precise)} 0-1

[Event "44th Chess Olympiad Women 2022"]
[Site "Chennai"]
[Date "2022.08.03"]
[Round "6.26"]
[White "Mordido, Kylen Joy"]
[Black "Miranda Vargas, Analia Karen"]
[Result "1-0"]
[WhiteElo "2023"]
[BlackElo "1723"]
[Annotator "NA RC"]
[PlyCount "69"]
[EventDate "2022.??.??"]
[TimeControl "60"]

1. c4 {[%emt 0:00:30]} c5 {[%emt 0:00:08]} 2. Nf3 {[%emt 0:00:44]} Nc6 {
[%emt 0:00:07]} 3. d4 {[%emt 0:01:13]} cxd4 {[%emt 0:00:10]} 4. Nxd4 {[%emt 0:
00:00]} g6 {[%emt 0:00:22]} 5. e4 {[%emt 0:01:31]} Bg7 {[%emt 0:00:15]} 6. Nc2
{[%emt 0:01:28]} Nf6 {[%emt 0:01:08]} 7. Nc3 {[%emt 0:00:49]} d6 {[%emt 0:00:
00]} 8. Be2 {[%emt 0:01:05]} O-O {[%emt 0:00:48]} 9. Be3 {[%emt 0:01:08]} Be6 {
[%emt 0:02:11]} 10. O-O {[%emt 0:02:06]} Qd7 {[%emt 0:01:43]} 11. f3 {[%emt 0:
00:00]} a6 {[%emt 0:07:25]} 12. Qd2 {[%emt 0:02:53]} Qc7 {[%emt 0:04:36]} 13.
Rac1 {[%emt 0:02:45]} Ne5 {[%emt 0:12:02]} 14. b3 {[%emt 0:01:34]} Rac8 {
[%emt 0:06:57]} 15. Rfd1 {[%emt 0:10:14]} h5 {[%emt 0:02:08]} 16. h3 {[%emt 0:
00:00]} Kh7 {[%emt 0:12:02]} 17. Nd4 {[%emt 0:03:01]} Qa5 {[%emt 0:04:10]} 18.
f4 {[%emt 0:05:40]} Nc6 {[%emt 0:03:41]} 19. Nf3 {[%emt 0:06:39]} Rcd8 {
[%emt 0:06:28]} 20. Bd3 {[%emt 0:02:57]} Bc8 {[%emt 0:01:35]} 21. Qf2 {[%emt 0:
00:00]} Nd7 {[%emt 0:03:00]} 22. Nd5 {[%emt 0:05:29]} Rde8 {[%emt 0:07:43]} 23.
Bb1 {[%emt 0:03:17]} e6 {[%emt 0:02:26]} 24. Nb6 {[%emt 0:01:17]} Nxb6 {
[%emt 0:02:47]} 25. Bxb6 {[%emt 0:00:12]} Qb4 {[%emt 0:00:05]} 26. Bc7 {
[%emt 0:02:10]} Qc5 {[%emt 0:02:18]} 27. Bxd6 {[%emt 0:01:23]} Qxf2+ {[%emt 0:
00:00]} 28. Kxf2 {[%emt 0:00:05]} Rg8 {[%emt 0:00:19]} 29. Ng5+ {[%emt 0:01:21]
} Kh8 {[%emt 0:00:32]} 30. Nxf7+ {[%emt 0:00:50]} Kh7 {[%emt 0:00:05]} 31. e5 {
[%emt 0:02:27]} Ne7 {[%emt 0:01:20]} 32. Ng5+ {[%emt 0:03:27]} Kh6 {[%emt 0:00:
00]} 33. g4 {[%emt 0:01:22]} Bf8 {[%emt 0:01:25]} 34. Ne4 {[%emt 0:02:06]} Bg7
{[%emt 0:01:26]} 35. Nf6 {[%emt 0:00:56]} 1-0

[Event "44th Chess Olympiad Women 2022"]
[Site "Chennai"]
[Date "2022.08.03"]
[Round "6.26"]
[White "Penafiel Mendoza, Josselyne"]
[Black "San Diego, Marie Antoinette"]
[Result "1/2-1/2"]
[WhiteElo "1804"]
[BlackElo "2101"]
[Annotator "NA RC"]
[PlyCount "104"]
[EventDate "2022.??.??"]
[TimeControl "60"]

1. d4 {[%emt 0:00:18]} d5 {[%emt 0:00:11]} 2. c4 {[%emt 0:00:17]} e6 {[%emt 0:
00:00]} 3. Nc3 {[%emt 0:00:18]} c6 {[%emt 0:00:09]} 4. e3 {[%emt 0:02:15]} Nf6
{[%emt 0:00:42]} 5. Bd3 {[%emt 0:01:19]} dxc4 {[%emt 0:00:47]} 6. Bxc4 {
[%emt 0:00:08]} b5 {[%emt 0:02:28]} 7. Bd3 {[%emt 0:02:25]} Bb7 {[%emt 0:00:29]
} 8. Nf3 {[%emt 0:00:33]} a6 {[%emt 0:02:42]} 9. O-O {[%emt 0:01:02]} Nbd7 {
[%emt 0:00:21]} 10. b3 {[%emt 0:01:49]} Rc8 {[%emt 0:03:56]} 11. Bb2 {[%emt 0:
00:00]} c5 {[%emt 0:02:22]} 12. Qe2 {[%emt 0:03:01]} Qb6 {[%emt 0:08:38]} 13.
a4 {[%emt 0:04:14]} Bxf3 {[%emt 0:11:53]} 14. Qxf3 {[%emt 0:09:51]} c4 {
[%emt 0:08:23]} 15. axb5 {[%emt 0:24:38]} cxd3 {[%emt 0:05:31]} 16. bxa6 {
[%emt 0:00:44]} Qd8 {[%emt 0:01:26]} 17. a7 {[%emt 0:00:34]} Nb6 {[%emt 0:00:
00]} 18. Nb5 {[%emt 0:05:42]} Na8 {[%emt 0:13:05]} 19. Rfc1 {[%emt 0:03:20]}
Nd5 {[%emt 0:06:50]} 20. e4 {[%emt 0:09:21]} Ndb6 {[%emt 0:06:24]} 21. Qxd3 {
[%emt 0:04:24]} Be7 {[%emt 0:06:27]} 22. Rxc8 {[%emt 0:01:52]} Nxc8 {[%emt 0:
00:00]} 23. Qg3 {[%emt 0:02:04]} O-O {[%emt 0:02:32]} 24. Rc1 {[%emt 0:04:03]}
Nd6 {[%emt 0:05:31]} 25. d5 {[%emt 0:01:56]} f6 {[%emt 0:00:23]} 26. Nxd6 {
[%emt 0:02:08]} Bxd6 {[%emt 0:00:48]} 27. Qg4 {[%emt 0:02:36]} exd5 {[%emt 0:
00:00]} 28. Qe6+ {[%emt 0:00:32]} Kh8 {[%emt 0:00:06]} 29. Qxd5 {[%emt 0:00:49]
} Bc7 {[%emt 0:03:30]} 30. Ba3 {[%emt 0:07:07]} Re8 {[%emt 0:02:39]} 31. g3 {
[%emt 0:01:09]} Bb6 {[%emt 0:00:51]} 32. Bc5 {[%emt 0:01:21]} Qxd5 {[%emt 0:00:
00]} 33. exd5 {[%emt 0:00:06]} Rc8 {[%emt 0:00:37]} 34. b4 {[%emt 0:00:48]}
Bxa7 {[%emt 0:01:09]} 35. Ra1 {[%emt 0:00:14]} Bxc5 {[%emt 0:00:33]} 36. bxc5 {
[%emt 0:00:07]} Kg8 {[%emt 0:00:21]} 37. d6 {[%emt 0:00:39]} Kf7 {[%emt 0:00:
00]} 38. Ra7+ {[%emt 0:02:50]} Ke6 {[%emt 0:00:41]} 39. Re7+ {[%emt 0:00:54]}
Kd5 {[%emt 0:00:27]} 40. d7 {[%emt 0:00:24]} Rd8 {[%emt 0:00:14]} 41. Re8 {
[%emt 0:30:41]} Rxd7 {[%emt 0:30:08]} 42. Rxa8 {[%emt 0:00:04]} Kxc5 {[%emt 0:
00:00]} 43. Rh8 {[%emt 0:00:22]} g6 {[%emt 0:01:20]} 44. Kg2 {[%emt 0:00:47]}
Kd5 {[%emt 0:00:00]} 45. f3 {[%emt 0:00:00]} Ke6 {[%emt 0:00:00]} 46. g4 {
[%emt 0:00:00]} Ra7 {[%emt 0:00:00]} 47. Kg3 {[%emt 0:00:00]} Rb7 {[%emt 0:00:
00]} 48. h4 {[%emt 0:00:00]} Ra7 {[%emt 0:00:00]} 49. h5 {[%emt 0:00:00]} gxh5
{[%emt 0:00:00]} 50. gxh5 {[%emt 0:00:00]} Kf5 {[%emt 0:00:00]} 51. Rg8 {
[%emt 0:00:00]} Ra1 {[%emt 0:00:00]} 52. Rh8 {[%emt 0:00:00]} Ra7 {[%emt 0:00:
00]} 1/2-1/2

[Event "44th Chess Olympiad Women 2022"]
[Site "Chennai"]
[Date "2022.08.03"]
[Round "6.27"]
[White "Borda Rodas, Anapaola S."]
[Black "Bacic, Kristina"]
[Result "1-0"]
[WhiteElo "2183"]
[BlackElo "1866"]
[Annotator "NA RC"]
[PlyCount "57"]
[EventDate "2022.??.??"]
[TimeControl "60"]

1. e4 {[%emt 0:00:03]} c6 {[%emt 0:00:12]} 2. d4 {[%emt 0:00:07]} d5 {[%emt 0:
00:00]} 3. e5 {[%emt 0:00:20]} Bf5 {[%emt 0:00:18]} 4. h4 {[%emt 0:00:20]} c5 {
[%emt 0:00:19]} 5. dxc5 {[%emt 0:03:08]} Nc6 {[%emt 0:00:33]} 6. Nf3 {[%emt 0:
00:00]} e6 {[%emt 0:00:49]} 7. a3 {[%emt 0:01:35]} Bg4 {[%emt 0:12:47]} 8. b4 {
[%emt 0:09:58]} a5 {[%emt 0:15:15]} 9. Bg5 {[%emt 0:29:04]} Qc7 {[%emt 0:08:01]
} 10. Nbd2 {[%emt 0:04:14]} Nxe5 {[%emt 0:05:18]} 11. Bf4 {[%emt 0:04:38]} Nd3+
{[%emt 0:09:46]} 12. cxd3 {[%emt 0:02:53]} Qxf4 {[%emt 0:00:09]} 13. Qa4+ {
[%emt 0:01:18]} Kd8 {[%emt 0:00:52]} 14. d4 {[%emt 0:01:19]} Bxf3 {[%emt 0:00:
00]} 15. Nxf3 {[%emt 0:00:17]} Nf6 {[%emt 0:06:43]} 16. Bd3 {[%emt 0:03:38]}
Ne4 {[%emt 0:04:04]} 17. O-O {[%emt 0:00:56]} Be7 {[%emt 0:03:40]} 18. Ne5 {
[%emt 0:00:44]} Nf6 {[%emt 0:06:25]} 19. Nxf7+ {[%emt 0:01:04]} Kc7 {[%emt 0:
00:00]} 20. Nxh8 {[%emt 0:00:49]} Ng4 {[%emt 0:00:17]} 21. g3 {[%emt 0:00:23]}
Qxd4 {[%emt 0:02:57]} 22. Qd1 {[%emt 0:01:03]} Bxh4 {[%emt 0:04:42]} 23. Be2 {
[%emt 0:00:13]} Qe5 {[%emt 0:01:14]} 24. Bxg4 {[%emt 0:00:05]} Bxg3 {[%emt 0:
00:00]} 25. Qf3 {[%emt 0:00:08]} Bh2+ {[%emt 0:00:43]} 26. Kh1 {[%emt 0:00:15]}
Rxh8 {[%emt 0:00:20]} 27. Rae1 {[%emt 0:00:07]} Qg5 {[%emt 0:01:53]} 28. Kxh2 {
[%emt 0:00:11]} h5 {[%emt 0:00:14]} 29. Bxe6 {[%emt 0:00:18]} 1-0

[Event "44th Chess Olympiad Women 2022"]
[Site "Chennai"]
[Date "2022.08.03"]
[Round "6.27"]
[White "Koljevic, Nikolina"]
[Black "Campos, Maria Jose"]
[Result "1/2-1/2"]
[WhiteElo "2014"]
[BlackElo "2185"]
[Annotator "TA"]
[PlyCount "169"]
[EventDate "2022.??.??"]
[TimeControl "60"]

{[%evp 9,169,-7,-5,-5,-5,-5,39,34,33,16,15,12,15,15,15,14,13,8,20,22,23,-22,
-20,-9,-10,-22,0,0,0,0,0,0,0,0,0,0,48,0,0,0,0,-45,-40,-55,0,-43,-39,-105,-111,
-98,-77,-110,-90,-85,-92,-79,-91,-168,-169,-155,-126,-218,-177,-177,-177,-165,
-162,-169,-131,-132,-129,-128,-136,-160,-160,-160,-160,-160,-160,-160,-160,
-152,-152,-152,-152,-178,-178,-178,-170,-158,-70,-70,-70,-70,-70,-70,-70,-70,
-50,-50,-50,-56,-50,-50,-50,-56,-50,-68,-68,-68,-68,-68,-57,-57,-26,-68,-68,
-68,-68,-68,-68,-68,-68,-68,-68,-68,-68,-68,-68,-68,-68,-68,-68,-68,-57,-68,
-57,-68,-57,-66,-26,-68,-57,-57,-43,-67,-57,-57,-57,-67,-57,-57,-57,-57,-57,
-57,-43,-43,-43,-43,-43,-43]} 1. e4 {[%emt 0:00:03]} e5 {[%emt 0:00:32]} 2. Nc3
{[%emt 0:00:15]} Nf6 {[%emt 0:00:38]} 3. Nf3 {[%emt 0:01:01]} Nc6 {[%emt 0:00:
00]} 4. Bb5 {[%emt 0:00:21]} Bd6 {[%emt 0:06:50]} 5. d4 {[%emt 0:06:20]} Nxd4 {
[%emt 0:00:00]} 6. Nxd4 {[%emt 0:00:10] C48: Four Knights: 4 Bb5, replies
other than 4...Bb4.} exd4 {[%emt 0:00:00]} 7. Qxd4 {[%emt 0:00:16]} O-O {
[%emt 0:00:00]} (7... Qe7 $5 {[%cal Rd6c5]}) 8. Bg5 {[%emt 0:04:49] White is
slightly better.} Re8 {[%emt 0:00:00] [#]} 9. f4 $146 {[%emt 0:06:41] Prevents
Be5.} (9. Bxf6 $5 gxf6 10. O-O $11) ({Predecessor:} 9. Bxf6 Qxf6 10. Qxf6 gxf6
11. O-O-O a6 12. Ba4 b5 13. Bb3 Bb7 14. f3 Kg7 15. Kb1 {1-0 (37) Milanova,
M-Galunova,T (1965) Plovdiv 2010}) 9... h6 {[%emt 0:00:22]} 10. Bxf6 {[%emt 0:
00:00]} Qxf6 {[%emt 0:00:53]} 11. Qxf6 {[%emt 0:01:43]} gxf6 {[%emt 0:00:08]}
12. O-O {[%emt 0:06:22][%cal Ye4e5]} c6 {[%emt 0:00:18]} 13. Bd3 {[%emt 0:00:
00]} Bc5+ {[%emt 0:05:45]} 14. Kh1 {[%emt 0:00:07]} Bd4 {[%emt 0:00:22][%cal
Yc5d4,Yd4b2,Yb2a3,Ya3e7,Ye7d6]} 15. Ne2 {[%emt 0:11:35][%cal Yc3e2,Ye2g3,Yg3h5,
Yh5f6]} Bxb2 {[%emt 0:04:56]} 16. Rab1 {[%emt 0:00:27]} Ba3 {[%emt 0:00:05]}
17. Ng3 {[%emt 0:00:48]} b6 {[%emt 0:07:33]} 18. Nh5 {[%emt 0:09:08]} Be7 {
[%emt 0:00:39]} 19. Rf3 {[%emt 0:05:42]} Kh8 {[%emt 0:00:00]} 20. e5 {[%emt 0:
05:33]} d5 {[%emt 0:09:23]} 21. exd6 $1 {[%emt 0:06:58]} Bxd6 {[%emt 0:00:25]}
22. Nxf6 {[%emt 0:00:28]} Re6 {[%emt 0:01:03]} (22... Rd8 $11 {is more
appropriate.}) 23. Ne4 {[%emt 0:02:39]} (23. Ng4 $1 $14) 23... Bf8 $11 {
[%emt 0:00:12]} 24. f5 {[%emt 0:01:15]} Re5 {[%emt 0:01:22]} 25. Nd2 {[%emt 0:
03:46]} Bd7 {[%emt 0:04:20]} 26. Nc4 {[%emt 0:01:13]} Ree8 {[%emt 0:00:00]} (
26... Rd5 $15) 27. Rd1 {[%emt 0:01:36]} c5 {[%emt 0:02:34]} 28. Ne3 {[%emt 0:
07:26]} (28. Kg1 $15) 28... Bc6 $17 {[%emt 0:02:14]} 29. Rh3 {[%emt 0:00:00]}
Rad8 {[%emt 0:00:15][%cal Yc6b5]} 30. Be2 {[%emt 0:04:11] Against Bb5} Rd4 {
[%emt 0:01:14] Threatens to win with ...Rde4.} 31. Kg1 {[%emt 0:02:29]} Ba4 {
[%emt 0:07:25]} 32. Kf2 {[%emt 0:02:35]} Bg7 {[%emt 0:05:01]} 33. Bf3 {[%emt 0:
03:08]} (33. Rd3 $17 {keeps fighting.}) 33... Kg8 $1 $19 {[%emt 0:00:00]} 34.
f6 {[%emt 0:03:27]} Bxf6 {[%emt 0:00:42] aiming for ...Rxd1.} 35. Nf5 {[%emt 0:
00:02]} (35. Ng4 $17 Bg7 36. Nxh6+ Kf8 37. Nf5) 35... Bxc2 {[%emt 0:00:00]
This bishop pair is nice.} 36. Nxd4 {[%emt 0:01:14]} Bxd1 {[%emt 0:00:00]} ({
Not} 36... cxd4 37. Rd2 Bf5 38. Rxh6 $15) (36... Bxd4+ 37. Rxd4 cxd4 38. Rxh6
$17) 37. Bxd1 {[%emt 0:01:23] Strongly threatening Nf5.} Bxd4+ {[%emt 0:00:00]
Endgame KRB-KRB} 38. Kf1 {[%emt 0:00:14]} Kg7 {[%emt 0:00:09]} 39. Rg3+ {
[%emt 0:00:13]} Kf8 {[%emt 0:00:44]} 40. Be2 {[%emt 0:01:11]} Re4 {[%emt 0:00:
49]} 41. Bd3 {[%emt 0:31:15]} Rh4 {[%emt 0:30:54]} 42. h3 {[%emt 0:00:00]} Rf4+
{[%emt 0:02:07]} 43. Rf3 {[%emt 0:00:42]} Rxf3+ {[%emt 0:02:09]} 44. gxf3 $17 {
[%emt 0:00:02] KB-KB} Ke7 {[%emt 0:00:55]} 45. Ke2 {[%emt 0:00:00]} Kd6 {
[%emt 0:00:00]} 46. Bc4 {[%emt 0:00:00]} f6 {[%emt 0:00:00]} 47. f4 {[%emt 0:
00:00]} Bb2 $1 {[%emt 0:00:00]} 48. a4 {[%emt 0:00:00] [#]} Bc1 $1 {[%emt 0:00:
00]} 49. Kf3 {[%emt 0:00:00] [#]} h5 {[%emt 0:00:00]} ({Better is} 49... f5 $1
$17 50. h4 Bd2) 50. Ke4 $15 {[%emt 0:00:00]} Bd2 {[%emt 0:00:00]} 51. f5 {
[%emt 0:00:00]} Be1 {[%emt 0:00:00]} 52. Be2 {[%emt 0:00:00]} Bf2 {[%emt 0:00:
00]} 53. Bb5 {[%emt 0:00:00]} c4 {[%emt 0:00:00]} 54. Bxc4 {[%emt 0:00:00]} Kc5
{[%emt 0:00:00]} 55. Kd3 {[%emt 0:00:00]} Kb4 {[%emt 0:00:00]} 56. Bb5 {
[%emt 0:00:00]} h4 {[%emt 0:00:00]} 57. Kc2 {[%emt 0:00:00]} Kc5 {[%emt 0:00:
00]} 58. Kb3 {[%emt 0:00:00]} Kd4 {[%emt 0:00:00]} 59. Be2 {[%emt 0:00:00]} Be1
{[%emt 0:00:00]} 60. Bf3 {[%emt 0:01:14]} a6 {[%emt 0:00:00]} 61. Be2 {[%emt 0:
00:32]} Ke3 {[%emt 0:00:00]} 62. Bg4 {[%emt 0:00:40]} Kd3 {[%emt 0:00:00]} 63.
Bf3 {[%emt 0:00:30]} Ba5 {[%emt 0:00:00]} 64. Bg4 {[%emt 0:00:33]} Ke4 {
[%emt 0:00:00]} 65. Kc4 {[%emt 0:00:33]} Be1 {[%emt 0:00:00]} 66. Kb3 $1 {
[%emt 0:00:15]} Bf2 {[%emt 0:00:00]} 67. Kc4 {[%emt 0:01:09]} Ke3 {[%emt 0:00:
00]} 68. Kb3 {[%emt 0:00:55]} Kd3 {[%emt 0:00:00]} 69. Bf3 {[%emt 0:00:16]} Bg3
{[%emt 0:00:00]} 70. Bg4 {[%emt 0:00:43]} Bd6 {[%emt 0:00:00]} 71. Bf3 {
[%emt 0:00:08]} Kd4 {[%emt 0:00:00]} 72. Bg4 {[%emt 0:00:25]} Bf8 {[%emt 0:00:
00]} 73. Bf3 {[%emt 0:00:13]} Kc5 {[%emt 0:00:00]} 74. Be2 {[%emt 0:00:22]} Kd5
{[%emt 0:00:00]} 75. Bg4 {[%emt 0:00:20]} a5 {[%emt 0:00:00] Black is slightly
better.} 76. Be2 {[%emt 0:00:24]} Kc5 {[%emt 0:00:00]} 77. Bf3 {[%emt 0:00:17]}
Bh6 {[%emt 0:00:00]} 78. Be2 {[%emt 0:00:12]} Bd2 {[%emt 0:00:00]} 79. Bf3 {
[%emt 0:00:12]} Bb4 {[%emt 0:00:00]} 80. Be2 {[%emt 0:00:07]} Kd4 {[%emt 0:00:
00]} 81. Bf3 {[%emt 0:00:25]} Kd3 {[%emt 0:00:00]} 82. Bg4 {[%emt 0:00:09]} Ke3
{[%emt 0:00:00]} 83. Kc4 {[%emt 0:00:24]} Bc5 {[%emt 0:00:00]} 84. Kb5 {
[%emt 0:00:57]} Kd3 {[%emt 0:00:00]} 85. Bf3 {[%emt 0:00:08] Black had all
chances to win. Weighted Error Value: White=0.11 (very precise) /Black=0.09 
(flawless)} 1/2-1/2